bitfinex/quotes_BTCUSD_20250313
["timestamp","ask_amount","ask_price","bid_price","bid_amount"]
[1741827357147,0.16280697,83757.0,83756.0,0.0121694]
[1741827357349,0.48970697,83757.0,83756.0,4e-07]
[1741827357571,0.48850722,83757.0,83756.0,4e-07]
[1741827357974,0.48750722,83757.0,83756.0,4e-07]
[1741827358185,0.48850722,83757.0,83756.0,4e-07]
[1741827358386,0.25279,83735.0,83727.0,0.75828]
[1741827358650,0.25079,83735.0,83728.0,0.238866]
[1741827358873,0.25079,83735.0,83727.0,0.75828]
[1741827359272,0.26950283,83735.0,83727.0,0.75828]
[1741827359844,0.26950283,83735.0,83734.0,0.0081694]
[1741827361346,0.26950283,83735.0,83734.0,0.0031694]
[1741827361493,0.01871283,83735.0,83734.0,0.0001694]
[1741827361711,0.03065483,83735.0,83734.0,0.0001694]
[1741827365765,0.01871283,83735.0,83734.0,0.0001694]
[1741827366187,0.03065483,83735.0,83734.0,0.0001694]
[1741827367548,0.01871283,83735.0,83734.0,0.0001694]
[1741827367947,0.01871283,83735.0,83734.0,0.2390204]
[1741827368381,0.011942,83738.0,83734.0,0.0001694]
[1741827369609,0.011941,83742.0,83735.0,0.238848]
[1741827369781,0.011939,83754.0,83747.0,0.238813]
[1741827369977,0.011939,83753.0,83739.0,0.011941]
[1741827370180,0.01194,83748.0,83739.0,0.011941]
[1741827370715,0.01194,83747.0,83739.0,0.011941]
[1741827371505,0.01194,83747.0,83736.0,0.011942]
[1741827371506,0.01194,83747.0,83741.0,0.26221082]
[1741827372839,0.011941,83744.0,83737.0,0.238841]
[1741827373222,0.250766,83744.0,83737.0,0.238841]
[1741827374110,0.238834,83740.0,83738.0,0.13904]
[1741827374249,0.25077,83742.0,83738.0,0.13904]
[1741827375062,0.25077,83742.0,83738.0,0.16291275]
[1741827376396,0.011941,83744.0,83738.0,0.40175075]
[1741827376602,0.250764,83744.0,83738.0,0.40175075]
[1741827376925,0.011941,83743.0,83738.0,0.377878]
[1741827377097,0.01194,83747.0,83738.0,0.377878]
[1741827377098,0.01194,83747.0,83740.0,0.238833]
[1741827377258,0.250757,83746.0,83740.0,0.238833]
[1741827377457,0.01194,83747.0,83742.0,0.238827]
[1741827377661,0.01194,83747.0,83740.0,0.238833]
[1741827377886,0.250754,83748.0,83740.0,0.238833]
[1741827378187,0.01194,83747.0,83740.0,0.238833]
[1741827378370,0.250757,83746.0,83740.0,0.238833]
[1741827378822,0.01194,83746.0,83740.0,0.238833]
[1741827378976,0.250754,83748.0,83742.0,0.238828]
[1741827379184,0.01194,83748.0,83742.0,0.238828]
[1741827379631,0.26945415,83751.0,83744.0,0.238822]
[1741827380532,0.26945415,83751.0,83740.0,0.250774]
[1741827380533,0.01194,83748.0,83740.0,0.238833]
[1741827380735,0.238815,83747.0,83740.0,0.238833]
[1741827381088,0.238815,83747.0,83742.0,0.238828]
[1741827382045,0.250755,83747.0,83742.0,0.238828]
[1741827383063,0.01194,83747.0,83742.0,0.238828]
[1741827383856,0.01194,83748.0,83742.0,0.238828]
[1741827387056,0.01194,83749.0,83742.0,0.238828]
[1741827387261,0.250749,83749.0,83742.0,0.238828]
[1741827387869,0.0003394,83787.0,83754.0,0.250732]
[1741827387870,0.011938,83764.0,83754.0,0.250732]
[1741827388019,0.250711,83762.0,83754.0,0.238793]
[1741827388220,0.011938,83762.0,83754.0,0.238793]
[1741827388427,0.011938,83761.0,83754.0,0.238793]
[1741827388639,0.011938,83762.0,83754.0,0.238793]
[1741827388843,0.25071,83762.0,83754.0,0.238793]
[1741827389045,0.011938,83760.0,83754.0,0.238793]
[1741827389418,0.250716,83760.0,83754.0,0.238793]
[1741827389850,0.011938,83761.0,83754.0,0.238793]
[1741827390043,0.011938,83760.0,83754.0,0.238793]
[1741827390247,0.011939,83759.0,83752.0,0.139]
[1741827390466,0.0126958,83757.0,83752.0,0.139]
[1741827390871,0.25073,83755.0,83752.0,0.139]
[1741827391242,0.011939,83753.0,83752.0,0.139]
[1741827391441,0.011939,83755.0,83752.0,0.139]
[1741827391648,0.0003388,83756.0,83752.0,0.139]
[1741827392971,0.0003388,83756.0,83753.0,0.238797]
[1741827393317,0.0003388,83756.0,83752.0,0.139]
[1741827393517,0.0003388,83756.0,83753.0,0.238797]
[1741827394175,0.0003388,83756.0,83755.0,0.238791]
[1741827395836,0.0003388,83756.0,83754.0,0.0001694]
[1741827396293,0.0003388,83756.0,83755.0,0.238791]
[1741827396500,0.0003388,83756.0,83754.0,0.0001694]
[1741827397929,0.2510668,83756.0,83754.0,0.0001694]
[1741827398767,0.011939,83755.0,83754.0,0.0001694]
[1741827400075,0.011939,83755.0,83754.0,0.01203967]
[1741827400280,0.011939,83755.0,83754.0,0.0001694]
[1741827401592,0.011939,83755.0,83754.0,0.0121596]
[1741827401775,0.011939,83755.0,83754.0,0.0001694]
[1741827401956,0.0003388,83756.0,83754.0,0.0001694]
[1741827402703,0.2510668,83756.0,83754.0,0.0001694]
[1741827403327,0.011939,83755.0,83754.0,0.0001694]
[1741827404544,0.011939,83755.0,83754.0,0.01239705]
[1741827404750,0.011939,83755.0,83754.0,0.0001694]
[1741827406055,0.2510668,83756.0,83754.0,0.0001694]
[1741827406056,0.0003388,83756.0,83754.0,0.25993366]
[1741827406428,0.0003388,83756.0,83755.0,0.011939]
[1741827406617,0.0003388,83756.0,83754.0,0.25110556]
[1741827409225,0.0003388,83756.0,83755.0,0.01313283]
[1741827409430,0.0003388,83756.0,83755.0,0.00119383]
[1741827409606,0.0003388,83756.0,83754.0,0.25110556]
[1741827411434,0.0003388,83756.0,83755.0,0.00119382]
[1741827412019,0.0003388,83756.0,83755.0,0.01313282]
[1741827413799,0.0003388,83756.0,83755.0,0.03553511]
[1741827415037,0.0003388,83756.0,83755.0,0.08373511]
[1741827415256,0.0003388,83756.0,83755.0,0.15933511]
[1741827417087,0.0003388,83756.0,83755.0,0.15814129]
[1741827418082,0.0003388,83756.0,83755.0,0.02240229]
[1741827418278,0.0122778,83756.0,83755.0,0.02240229]
[1741827418655,0.0003388,83756.0,83755.0,0.02240229]
[1741827420315,0.0003388,83756.0,83755.0,0.238791]
[1741827420668,0.0003388,83756.0,83754.0,0.15099698]
[1741827421913,0.0003388,83756.0,83754.0,0.1390894]
[1741827423579,0.0003388,83756.0,83754.0,0.15111854]
[1741827425053,0.0003388,83756.0,83754.0,0.1390894]
[1741827425054,0.25073,83755.0,83754.0,0.1390894]
[1741827425284,0.25073,83755.0,83754.0,0.0001694]
[1741827426181,0.011939,83755.0,83754.0,0.0001694]
[1741827426396,0.091039,83755.0,83754.0,0.0001694]
[1741827427331,0.093039,83755.0,83754.0,0.0001694]
[1741827429075,0.142139,83755.0,83754.0,0.0001694]
[1741827432947,0.21098004,83755.0,83754.0,4e-07]
[1741827433148,0.142139,83755.0,83754.0,4e-07]
[1741827433588,0.378878,83739.0,83738.0,4e-07]
[1741827433798,0.844658,83739.0,83738.0,4e-07]
[1741827437619,0.86337459,83739.0,83738.0,4e-07]
[1741827438938,0.86137459,83739.0,83738.0,4e-07]
[1741827439135,0.86337459,83739.0,83738.0,4e-07]
[1741827440423,0.25087,83709.0,83704.0,0.00443166]
[1741827440633,0.01314575,83708.0,83702.0,0.00911875]
[1741827440839,0.01314575,83708.0,83700.0,0.32791326]
[1741827441241,0.250874,83707.0,83700.0,0.32791326]
[1741827441612,0.250874,83707.0,83700.0,0.08896826]
[1741827441613,0.011947,83702.0,83700.0,0.08896826]
[1741827441836,0.011947,83702.0,83700.0,0.08909309]
[1741827442621,0.011946,83705.0,83700.0,0.01229309]
[1741827443412,0.063147,83701.0,83700.0,0.00012483]
[1741827443636,0.002,83701.0,83700.0,0.00012483]
[1741827443835,0.01514675,83701.0,83700.0,0.00012483]
[1741827447881,0.03387002,83701.0,83700.0,0.00012483]
[1741827450790,0.11627002,83701.0,83700.0,0.00012483]
[1741827451002,0.25523002,83701.0,83700.0,0.00012483]
[1741827451344,0.30263027,83701.0,83700.0,0.00012483]
[1741827451995,0.283907,83701.0,83700.0,0.00012483]
[1741827452404,0.011947,83698.0,83697.0,3.3e-07]
[1741827452601,0.01514675,83698.0,83697.0,3.3e-07]
[1741827455227,0.03387161,83698.0,83697.0,3.3e-07]
[1741827462451,0.01514675,83698.0,83697.0,3.3e-07]
[1741827464859,0.011947,83698.0,83697.0,0.08170033]
[1741827465089,0.011947,83698.0,83697.0,0.13070033]
[1741827465860,0.01872166,83698.0,83697.0,0.13070033]
[1741827466616,0.01872166,83698.0,83697.0,0.14264733]
[1741827467896,0.0003392,83701.0,83700.0,0.091347]
[1741827468064,0.0003392,83701.0,83700.0,0.0925416]
[1741827469729,0.0003392,83701.0,83700.0,0.1404416]
[1741827470551,0.0003392,83701.0,83700.0,0.139247]
[1741827472616,0.0003392,83701.0,83697.0,0.32860033]
[1741827472617,0.238948,83700.0,83697.0,0.32860033]
[1741827472956,0.0122862,83701.0,83697.0,0.32860033]
[1741827473156,0.0003392,83701.0,83698.0,0.238954]
[1741827473379,0.0003392,83701.0,83700.0,0.011947]
[1741827473553,0.0003392,83701.0,83700.0,0.092547]
[1741827473922,0.0003392,83701.0,83700.0,0.09374156]
[1741827474042,0.0003392,83701.0,83700.0,0.14014156]
[1741827474658,0.0003392,83701.0,83700.0,0.138947]
[1741827481211,0.0003392,83701.0,83700.0,0.127]
[1741827481547,0.0003392,83701.0,83700.0,0.138947]
[1741827483679,0.0003392,83701.0,83700.0,0.127]
[1741827483902,0.0003392,83701.0,83700.0,0.138947]
[1741827484133,0.0003392,83701.0,83700.0,0.277827]
[1741827486921,0.011947,83698.0,83697.0,1.08736033]
[1741827487113,0.013947,83698.0,83697.0,1.08736033]
[1741827487542,0.093347,83698.0,83697.0,1.08736033]
[1741827488100,0.093347,83698.0,83697.0,3.3e-07]
[1741827488248,0.09454675,83698.0,83697.0,3.3e-07]
[1741827488806,0.093347,83698.0,83697.0,3.3e-07]
[1741827489057,0.09454675,83698.0,83697.0,3.3e-07]
[1741827495820,0.11327128,83698.0,83697.0,3.3e-07]
[1741827498281,0.097148,83695.0,83694.0,9.3e-07]
[1741827498514,0.09834775,83695.0,83694.0,9.3e-07]
[1741827499520,0.250937,83686.0,83685.0,5.3e-07]
[1741827499747,0.513417,83686.0,83685.0,5.3e-07]
[1741827499978,0.515417,83686.0,83685.0,5.3e-07]
[1741827500426,0.5341449,83686.0,83685.0,5.3e-07]
[1741827502943,0.515417,83686.0,83685.0,5.3e-07]
[1741827503817,0.376537,83686.0,83685.0,5.3e-07]
[1741827505964,0.39526465,83686.0,83685.0,5.3e-07]
[1741827509224,0.39326465,83686.0,83685.0,5.3e-07]
[1741827509446,0.39526465,83686.0,83685.0,5.3e-07]
[1741827510595,0.31996465,83686.0,83685.0,5.3e-07]
[1741827511500,0.27166465,83686.0,83685.0,5.3e-07]
[1741827511954,0.26966465,83686.0,83685.0,5.3e-07]
[1741827512170,0.27166465,83686.0,83685.0,5.3e-07]
[1741827513563,0.34786465,83686.0,83685.0,5.3e-07]
[1741827515163,0.250946,83683.0,83682.0,1.3e-07]
[1741827516653,0.250976,83673.0,83672.0,6.3e-07]
[1741827517012,0.26573713,83673.0,83672.0,5e-08]
[1741827517389,0.239034,83670.0,83669.0,8.5e-07]
[1741827518011,0.252985,83670.0,83669.0,8.5e-07]
[1741827526133,0.251027,83656.0,83655.0,0.00540677]
[1741827526333,0.011953,83655.0,83654.0,0.0766694]
[1741827534227,0.0122924,83655.0,83654.0,0.0766694]
[1741827535098,0.0122924,83655.0,83654.0,0.0001694]
[1741827541605,0.03102111,83655.0,83654.0,0.0001694]
[1741827541923,0.0122924,83655.0,83654.0,0.0001694]
[1741827544729,0.03102126,83655.0,83654.0,0.0001694]
[1741827558470,0.03302126,83655.0,83654.0,0.0001694]
[1741827558718,0.01549215,83655.0,83654.0,0.0001694]
[1741827559270,0.09229215,83655.0,83654.0,4e-07]
[1741827559469,0.14139215,83655.0,83654.0,4e-07]
[1741827561705,0.16012466,83655.0,83654.0,4e-07]
[1741827562646,0.14139215,83655.0,83654.0,4e-07]
[1741827563499,0.01549215,83655.0,83654.0,4e-07]
[1741827564449,0.01349215,83655.0,83654.0,4e-07]
[1741827564677,0.0122924,83655.0,83654.0,4e-07]
[1741827564877,0.0003394,83655.0,83654.0,4e-07]
[1741827565085,0.0122924,83655.0,83654.0,4e-07]
[1741827565695,0.03102324,83655.0,83654.0,4e-07]
[1741827572093,0.03222299,83655.0,83654.0,4e-07]
[1741827572328,0.03422299,83655.0,83654.0,4e-07]
[1741827572534,0.01549215,83655.0,83654.0,4e-07]
[1741827575902,0.03422384,83655.0,83654.0,4e-07]
[1741827576944,0.013954,83653.0,83652.0,4e-07]
[1741827577154,0.01515375,83653.0,83652.0,4e-07]
[1741827586307,0.15391375,83653.0,83652.0,4e-07]
[1741827591537,0.15391375,83653.0,83652.0,0.0001699]
[1741827591734,0.15425275,83653.0,83652.0,0.0001699]
[1741827592198,0.15425275,83653.0,83652.0,9e-07]
[1741827599605,0.01549275,83653.0,83652.0,9e-07]
[1741827599808,0.15421275,83653.0,83652.0,9e-07]
[1741827600039,0.01549275,83653.0,83652.0,9e-07]
[1741827603609,0.01549275,83653.0,83652.0,0.0754009]
[1741827603960,0.014293,83653.0,83652.0,0.0754009]
[1741827604160,0.012293,83653.0,83652.0,0.0754009]
[1741827604515,0.239421,83653.0,83652.0,0.0754009]
[1741827604741,0.251375,83653.0,83652.0,0.1221009]
[1741827604945,0.000339,83653.0,83652.0,0.1221009]
[1741827606365,0.000339,83653.0,83652.0,0.1340549]
[1741827608312,0.000339,83653.0,83652.0,0.15812358]
[1741827608997,0.01906937,83653.0,83652.0,0.15812358]
[1741827609664,0.01906937,83653.0,83652.0,0.16727965]
[1741827610568,0.03102337,83653.0,83652.0,0.13125697]
[1741827610945,0.03102337,83653.0,83652.0,0.1221009]
[1741827611174,0.01906937,83653.0,83652.0,0.1221009]
[1741827611347,0.01906937,83653.0,83652.0,0.1340549]
[1741827612460,0.01906937,83653.0,83652.0,0.1221009]
[1741827613339,0.01906937,83653.0,83652.0,0.1340549]
[1741827613546,0.01906937,83653.0,83652.0,0.13525014]
[1741827613945,0.01906937,83653.0,83652.0,0.27393014]
[1741827614124,0.01906937,83653.0,83652.0,0.2727349]
[1741827623390,0.01906937,83653.0,83652.0,0.72127709]
[1741827623657,0.000339,83653.0,83652.0,0.72127709]
[1741827624110,0.000339,83653.0,83652.0,2.22127709]
[1741827625856,0.000339,83653.0,83652.0,0.72127709]
[1741827628799,0.000339,83653.0,83652.0,0.6013349]
[1741827633605,0.000339,83653.0,83652.0,0.4626549]
[1741827633812,0.000339,83653.0,83652.0,0.6012549]
[1741827634346,0.000339,83653.0,83652.0,0.4626549]
[1741827634556,0.000339,83653.0,83652.0,0.6012549]
[1741827634936,0.000339,83653.0,83652.0,0.4626549]
[1741827635139,0.000339,83653.0,83652.0,0.6012549]
[1741827635495,0.000339,83653.0,83652.0,0.4626549]
[1741827635630,0.000339,83653.0,83652.0,0.6012549]
[1741827635846,0.000339,83653.0,83652.0,2.1012549]
[1741827638802,0.000339,83653.0,83652.0,0.6012549]
[1741827641789,0.000339,83653.0,83652.0,0.72119709]
[1741827653784,0.000339,83653.0,83652.0,0.74419709]
[1741827656398,0.000339,83653.0,83652.0,0.3286009]
[1741827656598,0.012293,83653.0,83652.0,9e-07]
[1741827656802,0.01349275,83653.0,83652.0,9e-07]
[1741827657218,0.0322232,83653.0,83652.0,9e-07]
[1741827658209,0.1141232,83653.0,83652.0,9e-07]
[1741827658414,0.1632232,83653.0,83652.0,9e-07]
[1741827658772,0.1612232,83653.0,83652.0,9e-07]
[1741827658943,0.1512692,83653.0,83652.0,9e-07]
[1741827659151,0.40110545,83653.0,83652.0,9e-07]
[1741827659985,0.27010545,83653.0,83652.0,9e-07]
[1741827660651,0.27210545,83653.0,83652.0,9e-07]
[1741827661057,0.27010545,83653.0,83652.0,9e-07]
[1741827661209,0.01906945,83653.0,83652.0,9e-07]
[1741827661591,0.01906945,83653.0,83652.0,0.02595797]
[1741827661822,0.01906945,83653.0,83652.0,0.16451797]
[1741827662000,0.000339,83653.0,83652.0,0.16451797]
[1741827662323,0.012293,83653.0,83652.0,0.01400397]
[1741827662491,0.012293,83653.0,83652.0,9e-07]
[1741827662689,0.091593,83653.0,83652.0,9e-07]
[1741827663527,0.138893,83653.0,83652.0,9e-07]
[1741827664722,0.093593,83653.0,83652.0,9e-07]
[1741827665492,0.11232534,83653.0,83652.0,9e-07]
[1741827668813,0.15832534,83653.0,83652.0,9e-07]
[1741827671392,0.15632534,83653.0,83652.0,9e-07]
[1741827671601,0.15832534,83653.0,83652.0,9e-07]
[1741827674037,0.03302534,83653.0,83652.0,9e-07]
[1741827674238,0.012293,83653.0,83652.0,9e-07]
[1741827674494,0.014293,83653.0,83652.0,9e-07]
[1741827677289,0.03302595,83653.0,83652.0,9e-07]
[1741827678875,0.03102595,83653.0,83652.0,9e-07]
[1741827681011,0.03302595,83653.0,83652.0,9e-07]
[1741827681222,0.07892595,83653.0,83652.0,9e-07]
[1741827681419,0.15922595,83653.0,83652.0,9e-07]
[1741827682402,0.140493,83653.0,83652.0,9e-07]
[1741827682601,0.14169275,83653.0,83652.0,9e-07]
[1741827684039,0.13669275,83653.0,83652.0,9e-07]
[1741827684439,0.13469275,83653.0,83652.0,9e-07]
[1741827684656,0.13669275,83653.0,83652.0,9e-07]
[1741827686951,0.13703175,83653.0,83652.0,9e-07]
[1741827687167,0.15576698,83653.0,83652.0,9e-07]
[1741827696332,0.25934202,83653.0,83652.0,9e-07]
[1741827696528,0.15456723,83653.0,83652.0,9e-07]
[1741827696757,0.13703175,83653.0,83652.0,9e-07]
[1741827698295,0.251118,83626.0,83625.0,0.0727009]
[1741827699475,0.26998021,83626.0,83625.0,0.0727009]
[1741827699908,0.27198021,83626.0,83625.0,0.0727009]
[1741827701119,0.251144,83617.0,83616.0,0.0790695]
[1741827701924,0.26988206,83617.0,83616.0,0.0790695]
[1741827706839,0.01873806,83617.0,83616.0,0.0790695]
[1741827707574,0.0410754,83617.0,83616.0,0.0790695]
[1741827708254,0.0410754,83617.0,83616.0,0.0910285]
[1741827708468,0.01873806,83617.0,83616.0,0.0910285]
[1741827711646,0.000339,83625.0,83624.0,0.089258]
[1741827711851,0.000339,83625.0,83624.0,0.0773]
[1741827713007,0.02272441,83625.0,83624.0,0.089258]
[1741827713524,0.02272441,83625.0,83624.0,0.137558]
[1741827714096,0.02272441,83625.0,83624.0,0.1256]
[1741827715821,0.000339,83625.0,83624.0,0.1256]
[1741827716169,0.01907484,83625.0,83624.0,0.1256]
[1741827717395,0.01907484,83625.0,83624.0,0.137558]
[1741827717923,0.01907484,83625.0,83624.0,0.1256]
[1741827718522,0.04145965,83625.0,83624.0,0.1256]
[1741827722244,0.011958,83621.0,83619.0,0.0787]
[1741827722439,0.253144,83617.0,83616.0,0.0001695]
[1741827723975,0.00012509,83626.0,83616.0,0.0001695]
[1741827724175,0.000339,83625.0,83624.0,0.011958]
[1741827724774,0.002,83621.0,83616.0,0.0001695]
[1741827725042,0.013958,83621.0,83616.0,0.0001695]
[1741827725359,0.011959,83617.0,83616.0,0.0001695]
[1741827725509,0.01315875,83617.0,83616.0,0.0001695]
[1741827725717,0.011959,83617.0,83616.0,0.0001695]
[1741827726460,0.02238254,83617.0,83616.0,0.0001695]
[1741827726630,0.02238254,83617.0,83616.0,0.1433285]
[1741827727839,0.01873846,83618.0,83616.0,0.1433285]
[1741827727840,0.01873846,83618.0,83617.0,0.251144]
[1741827733960,0.01873846,83618.0,83617.0,0.2513135]
[1741827743338,0.01973846,83618.0,83617.0,0.2573135]
[1741827746852,0.03169746,83618.0,83617.0,0.0061695]
[1741827747258,0.03369746,83618.0,83617.0,0.0061695]
[1741827747553,0.095259,83618.0,83617.0,0.0061695]
[1741827749083,0.094259,83618.0,83617.0,0.0001695]
[1741827749482,0.094259,83618.0,83617.0,0.0041695]
[1741827755101,0.01873898,83620.0,83617.0,0.0041695]
[1741827755306,0.012297,83625.0,83617.0,0.0041695]
[1741827755703,0.251461,83625.0,83618.0,0.011959]
[1741827755888,0.251461,83625.0,83620.0,0.011958]
[1741827755889,0.00894124,83625.0,83620.0,0.011958]
[1741827756293,0.011957,83630.0,83622.0,0.239171]
[1741827756794,0.011957,83628.0,83622.0,0.239171]
[1741827757179,0.011957,83628.0,83622.0,0.251129]
[1741827757514,0.002,83634.0,83625.0,0.25112]
[1741827757656,0.011957,83631.0,83625.0,0.25112]
[1741827758293,0.0188615,83626.0,83625.0,0.25112]
[1741827758891,0.0188615,83626.0,83625.0,0.011958]
[1741827759049,0.0192005,83626.0,83625.0,0.011958]
[1741827759454,0.0192005,83626.0,83625.0,0.012958]
[1741827760056,0.0192005,83626.0,83625.0,0.01415371]
[1741827760265,0.0192005,83626.0,83625.0,0.012958]
[1741827763650,0.0192005,83626.0,83625.0,0.02178804]
[1741827765119,0.0192005,83626.0,83625.0,0.02078804]
[1741827766143,0.0192005,83626.0,83625.0,0.02378804]
[1741827767476,0.0192005,83626.0,83625.0,0.02498364]
[1741827768535,0.0192005,83626.0,83625.0,0.28340583]
[1741827768897,0.00046409,83626.0,83625.0,0.28221023]
[1741827770105,0.00046409,83626.0,83625.0,0.63381023]
[1741827770539,0.00046409,83626.0,83625.0,0.71521023]
[1741827771010,0.00046409,83626.0,83625.0,0.71537973]
[1741827772100,0.00046409,83626.0,83625.0,0.71937973]
[1741827772299,0.00046409,83626.0,83625.0,0.71237973]
[1741827772823,0.00046409,83626.0,83625.0,0.71937973]
[1741827774292,0.00046409,83626.0,83625.0,2.21937973]
[1741827774500,0.00046409,83626.0,83625.0,2.29047973]
[1741827775554,0.00046409,83626.0,83625.0,2.28347973]
[1741827775775,0.000339,83653.0,83652.0,0.251039]
[1741827775989,0.00046437,83653.0,83652.0,0.250039]
[1741827777298,0.00046437,83653.0,83652.0,0.27344192]
[1741827777898,0.00046437,83653.0,83652.0,0.39338411]
[1741827778724,0.00046437,83653.0,83652.0,0.40689651]
[1741827779061,0.00046437,83653.0,83652.0,0.40989651]
[1741827779259,0.00046437,83653.0,83652.0,0.48909651]
[1741827779896,0.00046437,83653.0,83652.0,0.49802]
[1741827780271,0.00046437,83653.0,83652.0,0.89442]
[1741827781924,0.00046437,83653.0,83652.0,1.43842]
[1741827782123,0.00046437,83653.0,83652.0,1.43242]
[1741827782525,0.00046437,83653.0,83652.0,1.43942]
[1741827788329,0.00046437,83653.0,83652.0,1.46442]
[1741827788505,0.00046437,83653.0,83652.0,2.96442]
[1741827789316,0.00046437,83653.0,83652.0,2.95742]
[1741827789518,0.0462,83688.0,83652.0,2.95742]
[1741827789519,0.058149,83688.0,83679.0,0.01195]
[1741827789701,0.011949,83686.0,83681.0,0.239002]
[1741827790105,0.011949,83685.0,83680.0,0.1384]
[1741827790311,0.011949,83686.0,83680.0,0.1384]
[1741827790507,0.011949,83687.0,83680.0,0.01195]
[1741827790714,0.01207437,83687.0,83681.0,0.1384]
[1741827790911,0.00012537,83687.0,83681.0,0.15035]
[1741827791391,0.002,83682.0,83681.0,0.1384]
[1741827791595,0.01395,83682.0,83681.0,0.1384]
[1741827791974,0.25295,83682.0,83680.0,0.0098444]
[1741827792356,0.25295,83682.0,83677.0,0.3272]
[1741827792895,0.002,83682.0,83677.0,0.566212]
[1741827793858,0.01195,83680.0,83677.0,0.3272]
[1741827794072,0.297132,83688.0,83678.0,0.239011]
[1741827794287,0.002,83686.0,83680.0,0.01195]
[1741827794489,0.00012537,83687.0,83684.0,0.250942]
[1741827794782,0.00012537,83687.0,83682.0,0.238992]
[1741827795204,0.011949,83685.0,83678.0,0.23901]
[1741827795456,0.011949,83683.0,83677.0,0.24804607]
[1741827795631,0.25094,83685.0,83679.0,0.239007]
[1741827796039,0.00012537,83687.0,83679.0,0.239007]
[1741827796040,0.00012537,83687.0,83680.0,0.01195]
[1741827796275,0.238997,83683.0,83677.0,0.00903307]
[1741827796474,0.01195,83681.0,83677.0,0.00903307]
[1741827796687,0.01195,83681.0,83677.0,0.002]
[1741827796688,0.01195,83679.0,83677.0,0.002]
[1741827796921,0.011952,83665.0,83659.0,0.02407725]
[1741827797130,0.013952,83663.0,83653.0,0.1384]
[1741827797341,0.011954,83653.0,83652.0,0.0001694]
[1741827797521,0.01515375,83653.0,83652.0,0.0001694]
[1741827798178,0.03388551,83653.0,83652.0,0.0001694]
[1741827798736,0.03388551,83653.0,83652.0,0.00058423]
[1741827799117,0.08158551,83653.0,83652.0,0.00058423]
[1741827799715,0.251108,83629.0,83628.0,0.10712656]
[1741827799937,0.332208,83629.0,83628.0,0.10712656]
[1741827800241,0.251118,83626.0,83625.0,0.0001695]
[1741827800666,0.253118,83626.0,83625.0,0.0001695]
[1741827800869,0.299718,83626.0,83625.0,0.0001695]
[1741827801589,0.3001358,83626.0,83625.0,0.0001695]
[1741827802174,0.32239637,83626.0,83625.0,0.0001695]
[1741827802581,0.40559637,83626.0,83625.0,0.0001695]
[1741827803188,0.251141,83618.0,83616.0,0.0001695]
[1741827803397,0.251141,83618.0,83570.0,0.0001696]
[1741827803398,0.013961,83602.0,83570.0,0.0001696]
[1741827803596,0.331219,83592.0,83591.0,0.0002]
[1741827803835,0.331282,83571.0,83570.0,0.0001696]
[1741827804504,0.331282,83571.0,83551.0,0.0008]
[1741827804505,0.078,83558.0,83555.0,5.6e-07]
[1741827804706,0.25337,83542.0,83541.0,0.0001695]
[1741827804913,0.002,83542.0,83541.0,0.0001695]
[1741827805118,0.00319975,83542.0,83541.0,0.0121395]
[1741827805326,0.002,83545.0,83544.0,0.011969]
[1741827805522,0.00041703,83558.0,83555.0,0.251331]
[1741827805649,0.00041703,83558.0,83557.0,0.011967]
[1741827805869,0.00041703,83558.0,83557.0,0.01316367]
[1741827806093,3e-08,83558.0,83557.0,0.13310586]
[1741827807380,3e-08,83558.0,83557.0,0.14010586]
[1741827807571,3e-08,83558.0,83557.0,0.159687]
[1741827807807,3e-08,83558.0,83557.0,0.14072]
[1741827807975,3e-08,83558.0,83557.0,0.14772]
[1741827808178,3e-08,83558.0,83557.0,0.159687]
[1741827808967,3e-08,83558.0,83557.0,0.007]
[1741827808968,0.00200003,83558.0,83557.0,0.007]
[1741827809086,0.01396703,83558.0,83557.0,0.007]
[1741827809290,3e-08,83558.0,83557.0,0.007]
[1741827809591,3e-08,83558.0,83557.0,0.011967]
[1741827809972,3e-08,83558.0,83557.0,0.0171637]
[1741827810336,3e-08,83558.0,83557.0,0.0191637]
[1741827810515,3e-08,83558.0,83557.0,0.011967]
[1741827810931,3e-08,83558.0,83557.0,0.017967]
[1741827811132,3e-08,83558.0,83557.0,0.011967]
[1741827811600,3e-08,83558.0,83557.0,0.018967]
[1741827812037,3e-08,83558.0,83557.0,0.02016365]
[1741827812244,3e-08,83558.0,83557.0,0.018967]
[1741827812703,3e-08,83558.0,83557.0,0.011967]
[1741827812915,3e-08,83558.0,83557.0,0.02016365]
[1741827813554,3e-08,83558.0,83557.0,0.46730584]
[1741827813764,3e-08,83558.0,83557.0,0.46610919]
[1741827814163,0.01196703,83558.0,83557.0,0.007]
[1741827814364,0.01516678,83558.0,83557.0,0.007]
[1741827815601,0.00200003,83558.0,83557.0,0.007]
[1741827815808,3e-08,83558.0,83557.0,0.018967]
[1741827816445,3e-08,83558.0,83557.0,0.007]
[1741827816842,0.01396703,83558.0,83557.0,0.14112]
[1741827817108,3e-08,83558.0,83557.0,0.14312]
[1741827817313,3e-08,83558.0,83557.0,0.155087]
[1741827817533,3e-08,83558.0,83557.0,0.153087]
[1741827817741,3e-08,83558.0,83557.0,0.158087]
[1741827818435,0.01196703,83558.0,83557.0,0.1462896]
[1741827818677,0.01430623,83558.0,83557.0,0.0051696]
[1741827819846,0.01430623,83558.0,83557.0,0.0001696]
[1741827820119,0.01430623,83558.0,83557.0,0.0021696]
[1741827820363,0.01430623,83558.0,83557.0,0.0001696]
[1741827821555,0.01430623,83558.0,83541.0,0.0001695]
[1741827821556,0.25337,83542.0,83541.0,0.0001695]
[1741827822510,0.27212788,83542.0,83541.0,0.0001695]
[1741827823136,0.27212788,83542.0,83541.0,0.0031695]
[1741827823402,0.27212788,83542.0,83541.0,0.0001695]
[1741827823868,0.01875788,83542.0,83541.0,0.2515425]
[1741827824093,0.02075788,83542.0,83541.0,0.0001695]
[1741827824324,0.02275788,83542.0,83541.0,0.0001695]
[1741827824529,0.02075788,83542.0,83541.0,0.0001695]
[1741827825054,0.002,83542.0,83541.0,0.0001695]
[1741827825293,0.002,83547.0,83544.0,0.011969]
[1741827825515,0.002,83547.0,83543.0,0.239397]
[1741827825737,0.002,83547.0,83546.0,0.011969]
[1741827826002,0.00119975,83552.0,83550.0,0.011968]
[1741827826227,0.00233923,83558.0,83555.0,0.011968]
[1741827826452,0.00233923,83558.0,83554.0,0.239364]